fUSD/lending_fUSD_20250602
["ID","MTS","AMOUNT","RATE_DAILY","PERIOD"]
[363740222,1748856631899,-400.0,0.00019042,2]
[363740223,1748856631908,-400.0,0.0001905,2]
[363740224,1748856631917,-151.0,0.00019166,2]
[363740225,1748856631926,-228.81,0.00019166,2]
[363740226,1748856631985,-886.347653,0.00019166,2]
[363740227,1748856631995,-69.3368147,0.00019166,2]
[363740708,1748856637863,-138.0631853,0.00019166,2]
[363740709,1748856637873,-1200.0,0.00019176,2]
[363740710,1748856637882,-300.0,0.00019177,2]
[363740711,1748856637893,-300.0,0.00019177,2]
[363740712,1748856637904,-420.0,0.00019178,2]
[363740713,1748856637914,-323.79571362,0.00019178,2]
[363740714,1748856637923,-560.74,0.00019178,2]
[363740715,1748856637935,-420.0,0.00019178,2]
[363740716,1748856637944,-420.0,0.00019178,2]
[363740717,1748856637954,-732.82,0.00019178,2]
[363740718,1748856637965,-420.0,0.00019178,2]
[363740719,1748856637975,-438.97,0.00019178,2]
[363740720,1748856637985,-420.0,0.00019178,2]
[363740721,1748856637994,-420.0,0.00019178,2]
[363740722,1748856638003,-178.4,0.00019178,2]
[363740723,1748856638013,-420.0,0.00019178,2]
[363740724,1748856638235,-195.64250069,0.00019178,2]
[363740725,1748856638246,-420.0,0.00019178,2]
[363740726,1748856638255,-425.84657177,0.00019178,2]
[363740727,1748856638265,-255.24127807,0.00019178,2]
[363740728,1748856638292,-142.19908703,0.00019178,2]
[363740730,1748856638301,-194.33178744,0.00019178,2]
[363740897,1748856639883,-225.66821256,0.00019178,2]
[363740899,1748856639894,-956.88,0.00019178,2]
[363740901,1748856639904,-420.0,0.00019178,2]
[363740903,1748856639914,-420.0,0.00019178,2]
[363740905,1748856639923,-420.0,0.00019178,2]
[363740907,1748856639933,-420.0,0.00019178,2]
[363740909,1748856639942,-420.0,0.00019178,2]
[363740911,1748856639951,-1086.84,0.00019178,2]
[363740913,1748856639960,-420.0,0.00019178,2]
[363740915,1748856639970,-930.85,0.00019178,2]
[363740917,1748856639980,-374.32,0.00019178,2]
[363740918,1748856639989,-122.69178744,0.00019178,2]
[363740925,1748856640152,-324.44821256,0.00019178,2]
[363740927,1748856640162,-208.28,0.00019178,2]
[363740929,1748856640173,-588.76,0.00019178,2]
[363740931,1748856640183,-420.0,0.00019178,2]
[363740933,1748856640193,-3070.2,0.00019178,2]
[363740935,1748856640203,-420.0,0.00019178,2]
[363740937,1748856640212,-210.81178744,0.00019178,2]
[363741201,1748856642810,-209.18821256,0.00019178,2]
[363741203,1748856642820,-420.0,0.00019178,2]
[363741205,1748856642830,-420.0,0.00019178,2]
[363741207,1748856642840,-420.0,0.00019178,2]
[363741209,1748856642849,-420.0,0.00019178,2]
[363741211,1748856642859,-420.0,0.00019178,2]
[363741213,1748856642869,-420.0,0.00019178,2]
[363741215,1748856642879,-420.0,0.00019178,2]
[363741217,1748856642889,-420.0,0.00019178,2]
[363741219,1748856642900,-244.13486723,0.00019178,2]
[363741478,1748856645990,-175.86513277,0.00019178,2]
[363741479,1748856646000,-487.13,0.00019178,2]
[363741480,1748856646010,-545.64,0.00019178,2]
[363741481,1748856646021,-420.0,0.00019178,2]
[363741482,1748856646030,-332.37786011,0.00019178,2]
[363741483,1748856646047,-260.43213989,0.00019178,2]
[363741484,1748856646058,-420.0,0.00019178,2]
[363741485,1748856646068,-1188.62,0.00019178,2]
[363741486,1748856646078,-420.0,0.00019178,2]
[363741487,1748856646088,-420.0,0.00019178,2]
[363741488,1748856646098,-420.0,0.00019178,2]
[363741489,1748856646110,-488.89587687,0.00019178,2]
[363741490,1748856646120,-173.93946327,0.00019178,2]
[363741491,1748856646141,-422.43053673,0.00019178,2]
[363741492,1748856646152,-152.75,0.00019178,2]
[363741493,1748856646163,-269.16479208,0.00019178,2]
[363741494,1748856646181,-150.83520792,0.00019178,2]
[363741495,1748856646191,-1283.52,0.00019178,2]
[363741496,1748856646201,-420.0,0.00019178,2]
[363741497,1748856646210,-420.0,0.00019178,2]
[363741498,1748856646219,-1893.93,0.00019178,2]
[363741499,1748856646229,-420.0,0.00019178,2]
[363741500,1748856646238,-420.0,0.00019178,2]
[363741501,1748856646248,-420.0,0.00019178,2]
[363741502,1748856646257,-420.0,0.00019178,2]
[363741503,1748856646267,-420.0,0.00019178,2]
[363741504,1748856646277,-362.36,0.00019178,2]
[363741505,1748856646287,-5748.44,0.00019178,2]
[363741506,1748856646297,-372.4609239,0.00019178,2]
[363741507,1748856646307,-420.0,0.00019178,2]
[363741508,1748856646316,-420.0,0.00019178,2]
[363741509,1748856646327,-420.0,0.00019178,2]
[363741510,1748856646337,-420.0,0.00019178,2]
[363741511,1748856646347,-420.0,0.00019178,2]
[363741512,1748856646356,-420.0,0.00019178,2]
[363741513,1748856646366,-420.0,0.00019178,2]
[363741514,1748856646375,-420.0,0.00019178,2]
[363741515,1748856646385,-420.0,0.00019178,2]
[363741516,1748856646395,-420.0,0.00019178,2]
[363741517,1748856646405,-166.47370692,0.00019178,2]
[363741518,1748856646415,-420.0,0.00019178,2]
[363741519,1748856646425,-1016.73,0.00019178,2]
[363741520,1748856646434,-990.93,0.00019178,2]
[363741521,1748856646444,-420.0,0.00019178,2]
[363741522,1748856646453,-420.0,0.00019178,2]
[363741523,1748856646462,-1155.42,0.00019178,2]
[363741524,1748856646472,-420.0,0.00019178,2]
[363741525,1748856646481,-420.0,0.00019178,2]
[363741526,1748856646491,-989.74,0.00019178,2]
[363741528,1748856646541,-420.0,0.00019178,2]
[363741530,1748856646551,-210.85098158,0.00019178,2]
[363741532,1748856646560,-471.51,0.00019178,2]
[363741534,1748856646569,-420.0,0.00019178,2]
[363741536,1748856646579,-563.10520385,0.00019178,2]
[363741538,1748856646588,-420.0,0.00019178,2]
[363741540,1748856646597,-420.0,0.00019178,2]
[363741541,1748856646607,-420.0,0.00019178,2]
[363741543,1748856646616,-481.31,0.00019178,2]
[363741545,1748856646625,-420.0,0.00019178,2]
[363741547,1748856646635,-420.0,0.00019178,2]
[363741549,1748856646644,-420.0,0.00019178,2]
[363741551,1748856646653,-2782.41,0.00019178,2]
[363741552,1748856646664,-420.0,0.00019178,2]
[363741553,1748856646673,-420.0,0.00019178,2]
[363741554,1748856646682,-720.81,0.00019178,2]
[363741555,1748856646692,-420.0,0.00019178,2]
[363741556,1748856646701,-420.0,0.00019178,2]
[363741557,1748856646710,-420.0,0.00019178,2]
[363741558,1748856646721,-993.0,0.00019178,2]
[363741559,1748856646733,-537.38,0.00019178,2]
[363741560,1748856646742,-420.0,0.00019178,2]
[363741561,1748856646752,-250.0,0.00019275,2]
[363741562,1748856646764,-1000.0,0.00019314,2]
[363741563,1748856646775,-1000.0,0.00019314,2]
[363741564,1748856646784,-420.0,0.00019315,2]
[363741565,1748856646794,-438.97,0.00019315,2]
[363741566,1748856646803,-956.88,0.00019315,2]
[363741567,1748856646815,-420.0,0.00019315,2]
[363741568,1748856646828,-420.0,0.00019315,2]
[363741569,1748856646837,-1086.84,0.00019315,2]
[363741570,1748856646847,-420.0,0.00019315,2]
[363741571,1748856646856,-930.85,0.00019315,2]
[363741572,1748856646866,-447.14,0.00019315,2]
[363741573,1748856646875,-588.76,0.00019315,2]
[363741574,1748856646885,-420.0,0.00019315,2]
[363741575,1748856646894,-3070.2,0.00019315,2]
[363741576,1748856646905,-420.0,0.00019315,2]
[363741577,1748856646914,-420.0,0.00019315,2]
[363741578,1748856646922,-420.0,0.00019315,2]
[363741579,1748856646932,-420.0,0.00019315,2]
[363741580,1748856646942,-420.0,0.00019315,2]
[363741581,1748856646952,-420.0,0.00019315,2]
[363741582,1748856646962,-420.0,0.00019315,2]
[363741583,1748856646973,-420.0,0.00019315,2]
[363741584,1748856646982,-487.13,0.00019315,2]
[363741585,1748856646991,-545.64,0.00019315,2]
[363741586,1748856647000,-420.0,0.00019315,2]
[363741587,1748856647009,-592.81,0.00019315,2]
[363741588,1748856647018,-420.0,0.00019315,2]
[363741589,1748856647028,-1188.62,0.00019315,2]
[363741590,1748856647038,-420.0,0.00019315,2]
[363741591,1748856647048,-596.37,0.00019315,2]
[363741592,1748856647058,-420.0,0.00019315,2]
[363741593,1748856647067,-1283.52,0.00019315,2]
[363741594,1748856647076,-1893.93,0.00019315,2]
[363741595,1748856647086,-420.0,0.00019315,2]
[363741596,1748856647095,-420.0,0.00019315,2]
[363741597,1748856647105,-523.92785537,0.00019315,2]
[363741598,1748856647115,-420.0,0.00019315,2]
[363741599,1748856647124,-420.0,0.00019315,2]
[363741600,1748856647134,-5748.44,0.00019315,2]
[363741601,1748856647143,-420.0,0.00019315,2]
[363741602,1748856647154,-420.0,0.00019315,2]
[363741603,1748856647163,-420.0,0.00019315,2]
[363741604,1748856647172,-420.0,0.00019315,2]
[363741605,1748856647182,-420.0,0.00019315,2]
[363741606,1748856647191,-420.0,0.00019315,2]
[363741607,1748856647200,-420.0,0.00019315,2]
[363741608,1748856647209,-166.14,0.00019315,2]
[363741609,1748856647218,-420.0,0.00019315,2]
[363741610,1748856647228,-1016.73,0.00019315,2]
[363741611,1748856647237,-990.93,0.00019315,2]
[363741612,1748856647246,-420.0,0.00019315,2]
[363741613,1748856647256,-1155.42,0.00019315,2]
[363741614,1748856647266,-420.0,0.00019315,2]
[363741615,1748856647277,-989.74,0.00019315,2]
[363741616,1748856647287,-420.0,0.00019315,2]
[363741617,1748856647296,-471.51,0.00019315,2]
[363741618,1748856647305,-420.0,0.00019315,2]
[363741619,1748856647314,-420.0,0.00019315,2]
[363741620,1748856647324,-420.0,0.00019315,2]
[363741621,1748856647333,-481.31,0.00019315,2]
[363741622,1748856647342,-420.0,0.00019315,2]
[363741623,1748856647351,-2782.41,0.00019315,2]
[363741624,1748856647360,-420.0,0.00019315,2]
[363741625,1748856647371,-420.0,0.00019315,2]
[363741626,1748856647381,-720.81,0.00019315,2]
[363741627,1748856647390,-420.0,0.00019315,2]
[363741628,1748856647400,-420.0,0.00019315,2]
[363741629,1748856647409,-420.0,0.00019315,2]
[363741630,1748856647419,-993.0,0.00019315,2]
[363741631,1748856647428,-537.38,0.00019315,2]
[363741632,1748856647437,-420.0,0.00019315,2]
[363741633,1748856647447,-474.79031489,0.00019352,2]
[363741634,1748856647464,-3144.0,0.00019352,2]
[363741635,1748856647488,-364.84893338,0.00019352,2]
[363741636,1748856659365,157.3,0.000241,120]
[363741638,1748856709375,1086.04,0.00018642,2]
[363741639,1748856922564,167.26,0.00018536,2]
[363741641,1748857002569,264.58,0.00013699,2]
[363741642,1748857007914,5562.0,0.000189,3]
[363741643,1748857008152,60973.0,0.000187,2]
[363741644,1748857024977,513.17,0.00016545,2]
[363741645,1748857025161,513.17,0.00018809,2]
[363741646,1748857039450,5562.0,0.00019,5]
[363741673,1748857638369,150.0,0.0001839,7]
[363741674,1748857639286,700.0,0.000188,6]
[363741675,1748857641384,1400.0,0.000189,6]
[363741676,1748857651330,1000.0,0.00018381,2]
[363741677,1748857695899,188.961844,0.00019,5]
[363741678,1748857701658,188.961844,0.00019,6]
[363741679,1748857725716,250.0,0.0002288,30]
[363741681,1748857743654,250.0,0.0002288,120]
[363741684,1748857804544,20000.0,0.00018336,2]
[363741689,1748857832127,-1000.0,0.000191,2]
[363741690,1748857832138,-45.8,0.00019102,2]
[363741691,1748857832179,-204.2,0.00019102,2]
[363741692,1748857832193,-400.0,0.00019102,2]
[363741693,1748857832203,-400.0,0.00019115,2]
[363741694,1748857832212,-500.0,0.00019139,2]
[363741695,1748857832224,-361.24,0.00019152,2]
[363741696,1748857832234,-300.0,0.00019177,2]
[363741697,1748857832243,-1200.0,0.00019177,2]
[363741698,1748857832256,-420.0,0.00019178,2]
[363741699,1748857832266,-407.5984677,0.00019178,2]
[363741700,1748857832287,-139.7915323,0.00019178,2]
[363741701,1748857832296,-737.58660251,0.00019178,2]
[363741702,1748857832312,-234.43339749,0.00019178,2]
[363741703,1748857832322,-455.3435571,0.00019178,2]
[363741704,1748857832332,-420.0,0.00019178,2]
[363741705,1748857832342,-260.64846234,0.00019178,2]
[363741706,1748857832352,-448.6,0.00019178,2]
[363741707,1748857832361,-420.0,0.00019178,2]
[363741708,1748857832371,-398.81764295,0.00019178,2]
[363741709,1748857832380,-420.0,0.00019178,2]
[363741710,1748857832389,-420.0,0.00019178,2]
[363741711,1748857832399,-420.0,0.00019178,2]
[363741712,1748857832409,-420.0,0.00019178,2]
[363741713,1748857832419,-869.45,0.00019178,2]
[363741714,1748857832429,-44.70694012,0.00019178,2]
[363741733,1748857838084,-375.29305988,0.00019178,2]
[363741734,1748857838094,-420.0,0.00019178,2]
[363741735,1748857838104,-420.0,0.00019178,2]
[363741736,1748857838113,-420.0,0.00019178,2]
[363741737,1748857838123,-420.0,0.00019178,2]
[363741738,1748857838132,-420.0,0.00019178,2]
[363741739,1748857838142,-420.0,0.00019178,2]
[363741740,1748857838157,-1014.78,0.00019178,2]
[363741741,1748857838166,-1110.67,0.00019178,2]
[363741742,1748857838175,-493.05,0.00019178,2]
[363741743,1748857838186,-938.62,0.00019178,2]
[363741744,1748857838197,-420.0,0.00019178,2]
[363741745,1748857838207,-420.0,0.00019178,2]
[363741746,1748857838218,-420.0,0.00019178,2]
[363741747,1748857838228,-456.95,0.00019178,2]
[363741748,1748857838238,-420.0,0.00019178,2]
[363741749,1748857838247,-641.64,0.00019178,2]
[363741750,1748857838257,-420.0,0.00019178,2]
[363741751,1748857838267,-420.0,0.00019178,2]
[363741752,1748857838277,-420.0,0.00019178,2]
[363741753,1748857838286,-3393.63,0.00019178,2]
[363741754,1748857838296,-420.0,0.00019178,2]
[363741755,1748857838306,-420.0,0.00019178,2]
[363741756,1748857838316,-420.0,0.00019178,2]
[363741757,1748857838325,-420.0,0.00019178,2]
[363741758,1748857838335,-420.0,0.00019178,2]
[363741760,1748857838344,-420.0,0.00019178,2]
[363741762,1748857838354,-651.09,0.00019178,2]
[363741764,1748857838364,-165.31888788,0.00019178,2]
[363741765,1748857838374,-420.0,0.00019178,2]
[363741766,1748857838384,-1301.44,0.00019178,2]
[363741767,1748857838394,-420.0,0.00019178,2]
[363741768,1748857838404,-420.0,0.00019178,2]
[363741769,1748857838413,-420.0,0.00019178,2]
[363741770,1748857838424,-420.0,0.00019178,2]
[363741771,1748857838438,-539.8,0.00019178,2]
[363741772,1748857838451,-420.0,0.00019178,2]
[363741774,1748857838461,-584.84,0.00019178,2]
[363741776,1748857838470,-420.0,0.00019178,2]
[363741778,1748857838480,-420.0,0.00019178,2]
[363741780,1748857838490,-420.0,0.00019178,2]
[363741782,1748857838500,-626.88,0.00019178,2]
[363741784,1748857838509,-420.0,0.00019178,2]
[363741786,1748857838519,-420.0,0.00019178,2]
[363741788,1748857838529,-420.0,0.00019178,2]
[363741790,1748857838538,-420.0,0.00019178,2]
[363741792,1748857838548,-420.0,0.00019178,2]
[363741794,1748857838558,-420.0,0.00019178,2]
[363741795,1748857838568,-420.0,0.00019178,2]
[363741797,1748857838578,-420.0,0.00019178,2]
[363741799,1748857838589,-420.0,0.00019178,2]
[363741801,1748857838599,-420.0,0.00019178,2]
[363741802,1748857838609,-420.0,0.00019178,2]
[363741804,1748857838619,-420.0,0.00019178,2]
[363741806,1748857838629,-2248.99,0.00019178,2]
[363741808,1748857838639,-322.46,0.00019178,2]
[363741809,1748857838649,-420.0,0.00019178,2]
[363741811,1748857838659,-420.0,0.00019178,2]
[363741813,1748857838669,-420.0,0.00019178,2]
[363741815,1748857838678,-1547.01,0.00019178,2]
[363741816,1748857838688,-420.0,0.00019178,2]
[363741818,1748857838699,-420.0,0.00019178,2]
[363741820,1748857838708,-420.0,0.00019178,2]
[363741821,1748857838718,-420.0,0.00019178,2]
[363741823,1748857838727,-420.0,0.00019178,2]
[363741825,1748857838739,-1052.59,0.00019178,2]
[363741826,1748857838749,-420.0,0.00019178,2]
[363741828,1748857838759,-420.0,0.00019178,2]
[363741830,1748857838769,-420.0,0.00019178,2]
[363741832,1748857838779,-420.0,0.00019178,2]
[363741834,1748857838788,-420.0,0.00019178,2]
[363741835,1748857838798,-420.0,0.00019178,2]
[363741837,1748857838808,-420.0,0.00019178,2]
[363741839,1748857838818,-420.0,0.00019178,2]
[363741841,1748857838828,-420.0,0.00019178,2]
[363741842,1748857838838,-420.0,0.00019178,2]
[363741844,1748857838847,-420.0,0.00019178,2]
[363741846,1748857838857,-493.28,0.00019178,2]
[363741848,1748857838867,-420.0,0.00019178,2]
[363741850,1748857838877,-420.0,0.00019178,2]
[363741851,1748857838886,-420.0,0.00019178,2]
[363741853,1748857838895,-6363.35,0.00019178,2]
[363741855,1748857838906,-442.0625276,0.00019178,2]
[363741857,1748857838916,-420.0,0.00019178,2]
[363741858,1748857838926,-420.0,0.00019178,2]
[363741860,1748857838936,-952.18,0.00019178,2]
[363741862,1748857838946,-1173.58,0.00019178,2]
[363741864,1748857838956,-420.0,0.00019178,2]
[363741865,1748857838966,-420.0,0.00019178,2]
[363741867,1748857838975,-420.0,0.00019178,2]
[363741869,1748857838985,-420.0,0.00019178,2]
[363741871,1748857838994,-420.0,0.00019178,2]
[363741873,1748857839004,-420.0,0.00019178,2]
[363741875,1748857839014,-479.07,0.00019178,2]
[363741876,1748857839026,-420.0,0.00019178,2]
[363741878,1748857839036,-420.0,0.00019178,2]
[363741885,1748857839104,-227.44,0.00019178,2]
[363741887,1748857839114,-420.0,0.00019178,2]
[363741889,1748857839124,-420.0,0.00019178,2]
[363741890,1748857839133,-420.0,0.00019178,2]
[363741892,1748857839144,-420.0,0.00019178,2]
[363741894,1748857839155,-286.97590428,0.00019178,2]
[363741896,1748857839164,-420.0,0.00019178,2]
[363741898,1748857839174,-420.0,0.00019178,2]
[363741900,1748857839183,-527.97,0.00019178,2]
[363741901,1748857839195,-420.0,0.00019178,2]
[363741903,1748857839206,-420.0,0.00019178,2]
[363741905,1748857839216,-420.0,0.00019178,2]
[363741907,1748857839227,-787.58,0.00019178,2]
[363741909,1748857839237,-2962.62,0.00019178,2]
[363741910,1748857839247,-420.0,0.00019178,2]
[363741912,1748857839256,-420.0,0.00019178,2]
[363741914,1748857839266,-702.29,0.00019178,2]
[363741916,1748857839275,-420.0,0.00019178,2]
[363741918,1748857839284,-420.0,0.00019178,2]
[363741920,1748857839294,-932.83,0.00019178,2]
[363741921,1748857839304,-4008.94548549,0.00019215,2]
[363741923,1748857839314,-361.22,0.00019234,2]
[363741925,1748857839324,-153.701462,0.00019242,5]
[363741927,1748857839333,-188.961844,0.00019242,5]
[363741929,1748857839343,-7659.30991239,0.0001925,2]
[363741930,1748857839352,-160.79232205,0.0001925,2]
[363741932,1748857839362,-158.23303642,0.00019252,2]
[363741934,1748857839372,-207.4,0.00019288,2]
[363741936,1748857839381,-4008.94548542,0.00019291,2]
[363741938,1748857839392,-19999.99,0.000193,2]
[363741940,1748857839402,-6017.99,0.000193,2]
[363741941,1748857839411,-1659.73,0.000193,2]
[363741943,1748857839420,-29999.99,0.000193,2]
[363741945,1748857839430,-2100.0,0.000193,7]
[363741947,1748857839439,-1000.0,0.000193,2]
[363741949,1748857839449,-285.45060478,0.00019314,2]
[363741951,1748857839458,-200.0,0.00019314,2]
[363741952,1748857839468,-500.0,0.00019314,2]
[363741954,1748857839477,-500.0,0.00019314,2]
[363741956,1748857839486,-500.0,0.00019314,2]
[363741958,1748857839496,-500.0,0.00019314,2]
[363741960,1748857839505,-500.0,0.00019314,2]
[363741961,1748857839516,-500.0,0.00019314,2]
[363741963,1748857839525,-500.0,0.00019314,2]
[363741965,1748857839535,-500.0,0.00019314,2]
[363741967,1748857839545,-500.0,0.00019314,2]
[363741969,1748857839554,-500.0,0.00019314,2]
[363741971,1748857839563,-500.0,0.00019314,2]
[363741973,1748857839574,-500.0,0.00019314,2]
[363741974,1748857839583,-500.0,0.00019314,2]
[363741976,1748857839592,-500.0,0.00019314,2]
[363741978,1748857839602,-500.0,0.00019314,2]
[363741980,1748857839611,-500.0,0.00019314,2]
[363741982,1748857839621,-500.0,0.00019314,2]
[363741983,1748857839630,-500.0,0.00019314,2]
[363741985,1748857839640,-500.0,0.00019314,2]
[363741987,1748857839649,-500.0,0.00019314,2]
[363741989,1748857839658,-518.05490532,0.00019314,2]
[363741991,1748857839668,-500.0,0.00019314,2]
[363741992,1748857839677,-500.0,0.00019314,2]
[363741994,1748857839687,-500.0,0.00019314,2]
[363741996,1748857839697,-787.36327111,0.00019315,2]
[363741998,1748857839708,-863875.76619158,0.00019315,2]
[363742000,1748857839719,-420.0,0.00019315,2]
[363742002,1748857839728,-547.39,0.00019315,2]
[363742003,1748857839738,-972.02,0.00019315,2]
[363742005,1748857839750,-420.0,0.00019315,2]
[363742007,1748857839759,-448.6,0.00019315,2]
[363742009,1748857839769,-420.0,0.00019315,2]
[363742011,1748857839778,-420.0,0.00019315,2]
[363742013,1748857839788,-527.07648293,0.00019315,2]
[363742015,1748857839797,-230.28,0.00019315,2]
[363742016,1748857839807,-420.0,0.00019315,2]
[363742019,1748857839815,-420.0,0.00019315,2]
[363742022,1748857839825,-420.0,0.00019315,2]
[363742025,1748857839834,-420.0,0.00019315,2]
[363742028,1748857839843,-420.0,0.00019315,2]
[363742030,1748857839852,-420.0,0.00019315,2]
[363742032,1748857839861,-1014.78,0.00019315,2]
[363742033,1748857839871,-1110.67,0.00019315,2]
[363742035,1748857839881,-493.05,0.00019315,2]
[363742037,1748857839890,-938.62,0.00019315,2]
[363742039,1748857839899,-420.0,0.00019315,2]
[363742040,1748857839908,-456.95,0.00019315,2]
[363742041,1748857839917,-641.64,0.00019315,2]
[363742042,1748857839927,-3393.63,0.00019315,2]
[363742043,1748857839935,-420.0,0.00019315,2]
[363742044,1748857839945,-420.0,0.00019315,2]
[363742045,1748857839955,-420.0,0.00019315,2]
[363742046,1748857839965,-420.0,0.00019315,2]
[363742047,1748857839975,-651.09,0.00019315,2]
[363742048,1748857839983,-420.0,0.00019315,2]
[363742049,1748857839993,-1301.44,0.00019315,2]
[363742050,1748857840002,-420.0,0.00019315,2]
[363742051,1748857840011,-420.0,0.00019315,2]
[363742052,1748857840020,-420.0,0.00019315,2]
[363742053,1748857840029,-539.8,0.00019315,2]
[363742054,1748857840038,-420.0,0.00019315,2]
[363742055,1748857840048,-584.84,0.00019315,2]
[363742056,1748857840057,-411.9961104,0.00019315,2]
[363742057,1748857840066,-420.0,0.00019315,2]
[363742058,1748857840075,-626.88,0.00019315,2]
[363742060,1748857840086,-420.0,0.00019315,2]
[363742062,1748857840096,-420.0,0.00019315,2]
[363742064,1748857840105,-420.0,0.00019315,2]
[363742065,1748857840115,-420.0,0.00019315,2]
[363742068,1748857840124,-2248.99,0.00019315,2]
[363742069,1748857840134,-420.0,0.00019315,2]
[363742072,1748857840146,-420.0,0.00019315,2]
[363742073,1748857840156,-1547.01,0.00019315,2]
[363742076,1748857840166,-420.0,0.00019315,2]
[363742078,1748857840176,-420.0,0.00019315,2]
[363742080,1748857840187,-420.0,0.00019315,2]
[363742082,1748857840197,-1052.59,0.00019315,2]
[363742084,1748857840208,-476.13490929,0.00019315,2]
[363742086,1748857840217,-420.0,0.00019315,2]
[363742087,1748857840229,-420.0,0.00019315,2]
[363742090,1748857840239,-420.0,0.00019315,2]
[363742092,1748857840249,-420.0,0.00019315,2]
[363742094,1748857840259,-420.0,0.00019315,2]
[363742096,1748857840268,-420.0,0.00019315,2]
[363742097,1748857840278,-420.0,0.00019315,2]
[363742100,1748857840288,-493.28,0.00019315,2]
[363742101,1748857840297,-420.0,0.00019315,2]
[363742103,1748857840307,-6363.35,0.00019315,2]
[363742105,1748857840316,-420.0,0.00019315,2]
[363742107,1748857840326,-420.0,0.00019315,2]
[363742109,1748857840336,-952.18,0.00019315,2]
[363742111,1748857840346,-1173.58,0.00019315,2]
[363742113,1748857840355,-420.0,0.00019315,2]
[363742115,1748857840365,-420.0,0.00019315,2]
[363742117,1748857840374,-420.0,0.00019315,2]
[363742119,1748857840384,-479.07,0.00019315,2]
[363742121,1748857840393,-420.0,0.00019315,2]
[363742123,1748857840402,-420.0,0.00019315,2]
[363742125,1748857840411,-420.0,0.00019315,2]
[363742127,1748857840420,-420.0,0.00019315,2]
[363742129,1748857840428,-420.0,0.00019315,2]
[363742131,1748857840437,-420.0,0.00019315,2]
[363742133,1748857840447,-527.97,0.00019315,2]
[363742135,1748857840456,-420.0,0.00019315,2]
[363742137,1748857840466,-787.58,0.00019315,2]
[363742139,1748857840476,-2962.62,0.00019315,2]
[363742141,1748857840485,-420.0,0.00019315,2]
[363742143,1748857840495,-420.0,0.00019315,2]
[363742145,1748857840505,-702.29,0.00019315,2]
[363742147,1748857840514,-932.83,0.00019315,2]
[363742149,1748857840525,-7659.3099123,0.00019322,2]
[363742151,1748857840535,-350.0,0.00019333,2]
[363742153,1748857840545,-153.86,0.0001934,2]
[363742156,1748857840555,-153.86,0.00019341,2]
[363742157,1748857840565,-623.93,0.00019351,2]
[363742159,1748857840575,-623.93,0.00019351,2]
[363742161,1748857840584,-623.93,0.00019351,2]
[363742163,1748857840594,-623.93,0.00019351,2]
[363742165,1748857840603,-500.0,0.00019351,2]
[363742167,1748857840613,-500.0,0.00019351,2]